[Event "Titled Tuesday Blitz March 07 Early 2023"]
[White "Oparin, Grigoriy"]
[Black "Nihal Sarin"]
[WhiteFideId "24125890"]
[BlackFideId "25092340"]
[WhiteElo "2641"]
[BlackElo "2689"]
[Result "0-1"]
[Round "10"]
[TimeControl "180+2"]
[Date "2023.03.07"]
[WhiteClock "0:00:16"]
[BlackClock "0:00:11"]

1. c4 {[%clk 0:02:57]}  g6 {[%clk 0:02:57]} 2. d4 {[%clk 0:02:54]}  Bg7 {[%clk 0:02:58]} 3. Nc3 {[%clk 0:02:54]}  d6 {[%clk 0:02:59]} 4. e4 {[%clk 0:02:54]}  Nf6 {[%clk 0:02:59]} 5. h3 {[%clk 0:02:52]}  O-O {[%clk 0:02:59]} 6. Bg5 {[%clk 0:02:53]}  Nc6 {[%clk 0:02:47]} 7. Nf3 {[%clk 0:02:50]}  h6 {[%clk 0:02:35]} 8. Be3 {[%clk 0:02:48]}  e5 {[%clk 0:02:35]} 9. d5 {[%clk 0:02:46]}  Nd4 {[%clk 0:02:35]} 10. Nxd4 {[%clk 0:02:45]}  exd4 {[%clk 0:02:36]} 11. Qxd4 {[%clk 0:02:42]}  Re8 {[%clk 0:02:22]} 12. Qd3 {[%clk 0:02:31]}  Qe7 {[%clk 0:01:49]} 13. f3 {[%clk 0:02:06]}  c5 {[%clk 0:01:44]} 14. dxc6 {[%clk 0:02:02]}  bxc6 {[%clk 0:01:44]} 15. O-O-O {[%clk 0:02:03]}  d5 {[%clk 0:01:39]} 16. Bd4 {[%clk 0:01:29]}  dxe4 {[%clk 0:01:31]} 17. Nxe4 {[%clk 0:01:30]}  Nxe4 {[%clk 0:01:21]} 18. fxe4 {[%clk 0:01:27]}  Rd8 {[%clk 0:01:07]} 19. Qe3 {[%clk 0:01:20]}  Qd7 {[%clk 0:00:54]} 20. e5 {[%clk 0:01:14]}  c5 {[%clk 0:00:51]} 21. Qf3 {[%clk 0:01:00]}  Bb7 {[%clk 0:00:46]} 22. Bc3 {[%clk 0:00:58]}  Bxf3 {[%clk 0:00:31]} 23. Rxd7 {[%clk 0:00:58]}  Rxd7 {[%clk 0:00:31]} 24. gxf3 {[%clk 0:00:59]}  Re8 {[%clk 0:00:32]} 25. f4 {[%clk 0:00:59]}  g5 {[%clk 0:00:33]} 26. Bg2 {[%clk 0:00:57]}  Rd3 {[%clk 0:00:29]} 27. Bc6 {[%clk 0:00:39]}  Re7 {[%clk 0:00:29]} 28. fxg5 {[%clk 0:00:25]}  hxg5 {[%clk 0:00:30]} 29. h4 {[%clk 0:00:21]}  Bxe5 {[%clk 0:00:23]} 30. Bd2 {[%clk 0:00:18]}  Bf4 {[%clk 0:00:19]} 31. Bxf4 {[%clk 0:00:17]}  gxf4 {[%clk 0:00:20]} 32. Rf1 {[%clk 0:00:18]}  Rd4 {[%clk 0:00:19]} 33. Bd5 {[%clk 0:00:18]}  Kh7 {[%clk 0:00:16]} 34. Kc2 {[%clk 0:00:18]}  f5 {[%clk 0:00:16]} 35. b4 {[%clk 0:00:17]}  cxb4 {[%clk 0:00:16]} 36. Kb3 {[%clk 0:00:18]}  a5 {[%clk 0:00:17]} 37. Ka4 {[%clk 0:00:18]}  Re5 {[%clk 0:00:11]} 38. Kxa5 {[%clk 0:00:16]}  Rxc4 {[%clk 0:00:11]} 0-1


[Site "https://www.chess.com"]

[Event "Titled Tuesday Blitz March 07 Early 2023"]
[White "Bortnyk, Olexandr"]
[Black "Vokhidov, Shamsiddin"]
[WhiteFideId "14120828"]
[BlackFideId "14204223"]
[WhiteElo "2734"]
[BlackElo "2570"]
[Result "1/2-1/2"]
[Round "10"]
[TimeControl "180+2"]
[Date "2023.03.07"]
[WhiteClock "0:00:07"]
[BlackClock "0:00:08"]

1. e4 {[%clk 0:03:00]}  c5 {[%clk 0:02:58]} 2. c3 {[%clk 0:03:00]}  Nf6 {[%clk 0:02:58]} 3. e5 {[%clk 0:03:00]}  Nd5 {[%clk 0:02:58]} 4. d4 {[%clk 0:03:01]}  cxd4 {[%clk 0:02:58]} 5. Nf3 {[%clk 0:03:02]}  d6 {[%clk 0:02:56]} 6. Bb5+ {[%clk 0:02:58]}  Bd7 {[%clk 0:02:55]} 7. Bc4 {[%clk 0:02:58]}  e6 {[%clk 0:02:55]} 8. cxd4 {[%clk 0:02:57]}  Bc6 {[%clk 0:02:55]} 9. O-O {[%clk 0:02:57]}  Nd7 {[%clk 0:02:55]} 10. Re1 {[%clk 0:02:55]}  dxe5 {[%clk 0:02:55]} 11. dxe5 {[%clk 0:02:53]}  Be7 {[%clk 0:02:49]} 12. Nd4 {[%clk 0:02:51]}  Qc7 {[%clk 0:02:45]} 13. Nxc6 {[%clk 0:02:50]}  bxc6 {[%clk 0:02:45]} 14. Qe2 {[%clk 0:02:29]}  O-O {[%clk 0:02:42]} 15. Nd2 {[%clk 0:02:29]}  N7b6 {[%clk 0:02:35]} 16. Bb3 {[%clk 0:02:27]}  c5 {[%clk 0:02:26]} 17. Nf3 {[%clk 0:02:27]}  c4 {[%clk 0:02:20]} 18. Bc2 {[%clk 0:02:26]}  Nb4 {[%clk 0:02:19]} 19. Be4 {[%clk 0:02:27]}  Rad8 {[%clk 0:02:19]} 20. Be3 {[%clk 0:02:13]}  Nd3 {[%clk 0:02:14]} 21. Red1 {[%clk 0:02:13]}  Nxe5 {[%clk 0:02:11]} 22. Nxe5 {[%clk 0:02:12]}  Rxd1+ {[%clk 0:01:58]} 23. Rxd1 {[%clk 0:02:13]}  Qxe5 {[%clk 0:01:59]} 24. Bxb6 {[%clk 0:02:10]}  f5 {[%clk 0:01:59]} 25. Bxa7 {[%clk 0:01:42]}  Qxe4 {[%clk 0:01:54]} 26. Qxe4 {[%clk 0:01:37]}  fxe4 {[%clk 0:01:54]} 27. Re1 {[%clk 0:01:04]}  Bf6 {[%clk 0:01:36]} 28. Rxe4 {[%clk 0:00:56]}  Ra8 {[%clk 0:01:34]} 29. Be3 {[%clk 0:00:45]}  Rxa2 {[%clk 0:01:21]} 30. Kf1 {[%clk 0:00:35]}  Ra4 {[%clk 0:01:11]} 31. Rxe6 {[%clk 0:00:23]}  Bxb2 {[%clk 0:01:10]} 32. Rc6 {[%clk 0:00:23]}  Bf6 {[%clk 0:01:04]} 33. Ke2 {[%clk 0:00:23]}  Ra2+ {[%clk 0:01:02]} 34. Kf3 {[%clk 0:00:24]}  c3 {[%clk 0:01:02]} 35. g4 {[%clk 0:00:22]}  Ra5 {[%clk 0:00:30]} 36. Ke4 {[%clk 0:00:22]}  Ra4+ {[%clk 0:00:28]} 37. Kf5 {[%clk 0:00:19]}  Ra5+ {[%clk 0:00:27]} 38. Ke4 {[%clk 0:00:19]}  Ra4+ {[%clk 0:00:27]} 39. Kf3 {[%clk 0:00:20]}  h6 {[%clk 0:00:21]} 40. h4 {[%clk 0:00:15]}  Bxh4 {[%clk 0:00:13]} 41. Rxc3 {[%clk 0:00:15]}  Bf6 {[%clk 0:00:13]} 42. Rc6 {[%clk 0:00:14]}  Kf7 {[%clk 0:00:14]} 43. Rd6 {[%clk 0:00:14]}  Rb4 {[%clk 0:00:13]} 44. Rd7+ {[%clk 0:00:14]}  Ke6 {[%clk 0:00:13]} 45. Ra7 {[%clk 0:00:14]}  Rc4 {[%clk 0:00:13]} 46. Ra6+ {[%clk 0:00:14]}  Kf7 {[%clk 0:00:13]} 47. Ra5 {[%clk 0:00:14]}  Rc3 {[%clk 0:00:13]} 48. Ke4 {[%clk 0:00:13]}  Rc4+ {[%clk 0:00:13]} 49. Kf3 {[%clk 0:00:14]}  Rc3 {[%clk 0:00:14]} 50. Kg2 {[%clk 0:00:13]}  Rc2 {[%clk 0:00:14]} 51. Rd5 {[%clk 0:00:13]}  Ke6 {[%clk 0:00:14]} 52. Rd3 {[%clk 0:00:13]}  Be5 {[%clk 0:00:14]} 53. Kf3 {[%clk 0:00:12]}  Bf6 {[%clk 0:00:14]} 54. Rb3 {[%clk 0:00:12]}  Be5 {[%clk 0:00:14]} 55. Rb4 {[%clk 0:00:11]}  Bf6 {[%clk 0:00:14]} 56. Ke4 {[%clk 0:00:11]}  Rb2 {[%clk 0:00:12]} 57. Ra4 {[%clk 0:00:11]}  Kf7 {[%clk 0:00:11]} 58. f4 {[%clk 0:00:11]}  Rb5 {[%clk 0:00:11]} 59. Ra7+ {[%clk 0:00:09]}  Kg6 {[%clk 0:00:11]} 60. Ra6 {[%clk 0:00:09]}  Kf7 {[%clk 0:00:10]} 61. Rc6 {[%clk 0:00:08]}  Ra5 {[%clk 0:00:10]} 62. Bc5 {[%clk 0:00:06]}  Ra4+ {[%clk 0:00:10]} 63. Kf3 {[%clk 0:00:06]}  Rc4 {[%clk 0:00:09]} 64. Rc7+ {[%clk 0:00:05]}  Ke6 {[%clk 0:00:08]} 65. Bb6 {[%clk 0:00:04]}  Rxc7 {[%clk 0:00:06]} 66. Bxc7 {[%clk 0:00:05]}  g6 {[%clk 0:00:07]} 67. Bb6 {[%clk 0:00:05]}  h5 {[%clk 0:00:08]} 68. Be3 {[%clk 0:00:05]}  hxg4+ {[%clk 0:00:08]} 69. Kxg4 {[%clk 0:00:06]}  Be7 {[%clk 0:00:08]} 70. Bd2 {[%clk 0:00:07]}  Bf6 {[%clk 0:00:08]} 1/2-1/2


[Site "https://www.chess.com"]

[Event "Titled Tuesday Blitz March 07 Early 2023"]
[White "Nakamura, Hikaru"]
[Black "Kamsky, Gata"]
[WhiteFideId "2016192"]
[BlackFideId "2000024"]
[WhiteElo "2879"]
[BlackElo "2666"]
[Result "1-0"]
[Round "10"]
[TimeControl "180+2"]
[Date "2023.03.07"]
[WhiteClock "0:00:53"]
[BlackClock "0:00:16"]

1. Nf3 {[%clk 0:03:00]}  Nf6 {[%clk 0:02:58]} 2. g3 {[%clk 0:02:56]}  g6 {[%clk 0:02:58]} 3. b3 {[%clk 0:02:55]}  Bg7 {[%clk 0:02:57]} 4. Bb2 {[%clk 0:02:55]}  O-O {[%clk 0:02:58]} 5. Bg2 {[%clk 0:02:55]}  d6 {[%clk 0:02:59]} 6. d4 {[%clk 0:02:56]}  Bf5 {[%clk 0:02:45]} 7. Nbd2 {[%clk 0:02:54]}  Qc8 {[%clk 0:02:42]} 8. h3 {[%clk 0:02:53]}  Re8 {[%clk 0:02:41]} 9. Nh4 {[%clk 0:02:47]}  Bd7 {[%clk 0:02:40]} 10. e4 {[%clk 0:02:47]}  e5 {[%clk 0:02:40]} 11. d5 {[%clk 0:02:48]}  a5 {[%clk 0:02:38]} 12. a3 {[%clk 0:02:31]}  Na6 {[%clk 0:02:37]} 13. Qe2 {[%clk 0:02:32]}  Nc5 {[%clk 0:02:36]} 14. O-O-O {[%clk 0:02:31]}  b5 {[%clk 0:02:36]} 15. Kb1 {[%clk 0:02:31]}  c6 {[%clk 0:02:34]} 16. dxc6 {[%clk 0:02:31]}  Qxc6 {[%clk 0:02:33]} 17. Rhe1 {[%clk 0:02:30]}  Rac8 {[%clk 0:02:32]} 18. Nf1 {[%clk 0:02:30]}  Be6 {[%clk 0:02:26]} 19. f4 {[%clk 0:02:26]}  a4 {[%clk 0:02:24]} 20. f5 {[%clk 0:02:20]}  Bd7 {[%clk 0:02:23]} 21. b4 {[%clk 0:02:19]}  Ncxe4 {[%clk 0:02:12]} 22. Bxe4 {[%clk 0:02:07]}  d5 {[%clk 0:02:13]} 23. Bg2 {[%clk 0:02:00]}  e4 {[%clk 0:02:13]} 24. fxg6 {[%clk 0:01:57]}  hxg6 {[%clk 0:02:12]} 25. Ne3 {[%clk 0:01:57]}  Be6 {[%clk 0:02:05]} 26. Bf1 {[%clk 0:01:51]}  Rb8 {[%clk 0:02:03]} 27. Nhg2 {[%clk 0:01:51]}  Nd7 {[%clk 0:01:10]} 28. Bxg7 {[%clk 0:01:49]}  Kxg7 {[%clk 0:01:10]} 29. Nf4 {[%clk 0:01:46]}  Ne5 {[%clk 0:01:10]} 30. Nexd5 {[%clk 0:01:30]}  Bxd5 {[%clk 0:01:10]} 31. Rxd5 {[%clk 0:01:27]}  Nc4 {[%clk 0:01:05]} 32. Rc5 {[%clk 0:01:19]}  Qf6 {[%clk 0:00:59]} 33. Rxc4 {[%clk 0:01:19]}  bxc4 {[%clk 0:00:59]} 34. Qe3 {[%clk 0:01:20]}  Rbc8 {[%clk 0:00:40]} 35. Nd5 {[%clk 0:01:12]}  Qd6 {[%clk 0:00:37]} 36. Qc3+ {[%clk 0:01:09]}  f6 {[%clk 0:00:34]} 37. Ne3 {[%clk 0:01:07]}  Kh7 {[%clk 0:00:23]} 38. g4 {[%clk 0:01:02]}  Qg3 {[%clk 0:00:21]} 39. Kb2 {[%clk 0:01:00]}  Re5 {[%clk 0:00:16]} 40. Nxc4 {[%clk 0:00:57]}  e3 {[%clk 0:00:16]} 41. Rxe3 {[%clk 0:00:53]} 1-0


[Site "https://www.chess.com"]

[Event "Titled Tuesday Blitz March 07 Early 2023"]
[White "Keymer, Vincent"]
[Black "Andreikin, Dmitry"]
[WhiteFideId "12940690"]
[BlackFideId "4158814"]
[WhiteElo "2651"]
[BlackElo "2736"]
[Result "0-1"]
[Round "10"]
[TimeControl "180+2"]
[Date "2023.03.07"]
[WhiteClock "0:00:01"]
[BlackClock "0:00:13"]

1. Nf3 {[%clk 0:03:00]}  Nf6 {[%clk 0:02:59]} 2. c4 {[%clk 0:03:01]}  e6 {[%clk 0:02:59]} 3. Nc3 {[%clk 0:03:01]}  d5 {[%clk 0:02:57]} 4. e3 {[%clk 0:03:02]}  a6 {[%clk 0:02:55]} 5. b3 {[%clk 0:03:01]}  c5 {[%clk 0:02:55]} 6. cxd5 {[%clk 0:03:02]}  exd5 {[%clk 0:02:56]} 7. g3 {[%clk 0:03:02]}  d4 {[%clk 0:02:53]} 8. Ne2 {[%clk 0:03:02]}  Nc6 {[%clk 0:02:48]} 9. Bg2 {[%clk 0:03:01]}  dxe3 {[%clk 0:02:46]} 10. fxe3 {[%clk 0:03:01]}  Bf5 {[%clk 0:02:40]} 11. O-O {[%clk 0:03:00]}  Bd3 {[%clk 0:02:40]} 12. Bb2 {[%clk 0:02:52]}  Be7 {[%clk 0:02:40]} 13. Ne1 {[%clk 0:02:51]}  Bg6 {[%clk 0:02:39]} 14. Nf4 {[%clk 0:02:51]}  O-O {[%clk 0:02:38]} 15. Nxg6 {[%clk 0:02:47]}  hxg6 {[%clk 0:02:39]} 16. Bxc6 {[%clk 0:02:47]}  bxc6 {[%clk 0:02:39]} 17. Rc1 {[%clk 0:02:47]}  Qd5 {[%clk 0:02:37]} 18. Bxf6 {[%clk 0:02:39]}  gxf6 {[%clk 0:02:32]} 19. Rf2 {[%clk 0:02:33]}  a5 {[%clk 0:02:29]} 20. Ng2 {[%clk 0:02:17]}  f5 {[%clk 0:02:20]} 21. Nf4 {[%clk 0:02:13]}  Qd7 {[%clk 0:02:19]} 22. Rc4 {[%clk 0:02:05]}  Rad8 {[%clk 0:02:06]} 23. Qc2 {[%clk 0:02:01]}  Bd6 {[%clk 0:01:51]} 24. h4 {[%clk 0:01:53]}  Qe7 {[%clk 0:01:37]} 25. Kg2 {[%clk 0:01:46]}  Rd7 {[%clk 0:01:35]} 26. Nd3 {[%clk 0:01:33]}  Rfd8 {[%clk 0:01:24]} 27. Nf4 {[%clk 0:01:04]}  Bxf4 {[%clk 0:01:16]} 28. Rcxf4 {[%clk 0:01:05]}  Rd3 {[%clk 0:01:01]} 29. h5 {[%clk 0:00:45]}  Qd6 {[%clk 0:00:48]} 30. hxg6 {[%clk 0:00:32]}  fxg6 {[%clk 0:00:49]} 31. Qc4+ {[%clk 0:00:33]}  Kg7 {[%clk 0:00:38]} 32. g4 {[%clk 0:00:31]}  Rxd2 {[%clk 0:00:24]} 33. gxf5 {[%clk 0:00:31]}  Rxf2+ {[%clk 0:00:18]} 34. Rxf2 {[%clk 0:00:26]}  gxf5 {[%clk 0:00:18]} 35. Qh4 {[%clk 0:00:08]}  Qg6+ {[%clk 0:00:13]} 36. Kf3 {[%clk 0:00:06]}  Rd1 {[%clk 0:00:12]} 37. Qe7+ {[%clk 0:00:02]}  Kg8 {[%clk 0:00:13]} 38. Rg2 {[%clk 0:00:01]}  Rf1+ {[%clk 0:00:13]} 0-1


[Site "https://www.chess.com"]

[Event "Titled Tuesday Blitz March 07 Early 2023"]
[White "Gholami Orimi, Mahdi"]
[Black "Tsydypov, Zhamsaran"]
[WhiteFideId "12558486"]
[BlackFideId "4108566"]
[WhiteElo "2363"]
[BlackElo "2584"]
[Result "1-0"]
[Round "10"]
[TimeControl "180+2"]
[Date "2023.03.07"]
[WhiteClock "0:01:32"]
[BlackClock "0:01:59"]

1. d4 {[%clk 0:03:00]}  Nf6 {[%clk 0:02:59]} 2. c4 {[%clk 0:03:00]}  e6 {[%clk 0:03:00]} 3. Nc3 {[%clk 0:03:01]}  Bb4 {[%clk 0:02:59]} 4. e3 {[%clk 0:03:02]}  d5 {[%clk 0:02:56]} 5. cxd5 {[%clk 0:03:00]}  exd5 {[%clk 0:02:56]} 6. a3 {[%clk 0:03:00]}  Bxc3+ {[%clk 0:02:55]} 7. bxc3 {[%clk 0:03:01]}  O-O {[%clk 0:02:53]} 8. Bd3 {[%clk 0:03:01]}  c5 {[%clk 0:02:53]} 9. Ne2 {[%clk 0:03:01]}  b6 {[%clk 0:02:53]} 10. O-O {[%clk 0:03:02]}  Ba6 {[%clk 0:02:54]} 11. Bxa6 {[%clk 0:02:53]}  Nxa6 {[%clk 0:02:54]} 12. Qd3 {[%clk 0:02:53]}  Nc7 {[%clk 0:02:53]} 13. dxc5 {[%clk 0:02:52]}  bxc5 {[%clk 0:02:53]} 14. c4 {[%clk 0:02:50]}  Rb8 {[%clk 0:02:49]} 15. Rd1 {[%clk 0:02:47]}  dxc4 {[%clk 0:02:48]} 16. Qc2 {[%clk 0:02:47]}  Qe7 {[%clk 0:02:46]} 17. Qxc4 {[%clk 0:02:47]}  Na8 {[%clk 0:02:34]} 18. Bd2 {[%clk 0:02:42]}  Nb6 {[%clk 0:02:34]} 19. Qc2 {[%clk 0:02:43]}  Rfc8 {[%clk 0:02:29]} 20. Ng3 {[%clk 0:02:42]}  Qe6 {[%clk 0:02:29]} 21. e4 {[%clk 0:02:36]}  h5 {[%clk 0:02:24]} 22. f3 {[%clk 0:02:35]}  h4 {[%clk 0:02:23]} 23. Nf5 {[%clk 0:02:35]}  h3 {[%clk 0:02:23]} 24. Bc3 {[%clk 0:02:35]}  Ne8 {[%clk 0:02:20]} 25. gxh3 {[%clk 0:02:27]}  g6 {[%clk 0:02:14]} 26. Nh6+ {[%clk 0:02:10]}  Kh7 {[%clk 0:02:14]} 27. Ng4 {[%clk 0:02:11]}  f5 {[%clk 0:02:14]} 28. exf5 {[%clk 0:02:09]}  Qxf5 {[%clk 0:02:14]} 29. Qd2 {[%clk 0:02:09]}  g5 {[%clk 0:02:11]} 30. Re1 {[%clk 0:01:59]}  Rd8 {[%clk 0:02:02]} 31. Re7+ {[%clk 0:01:50]}  Kg6 {[%clk 0:02:02]} 32. Qe2 {[%clk 0:01:33]}  Nd5 {[%clk 0:01:59]} 33. Re6+ {[%clk 0:01:31]}  Kh7 {[%clk 0:01:59]} 34. Rh6+ {[%clk 0:01:31]}  Kg8 {[%clk 0:01:59]} 35. Rh8+ {[%clk 0:01:31]}  Kf7 {[%clk 0:01:59]} 36. Nh6+ {[%clk 0:01:32]} 1-0


[Site "https://www.chess.com"]

[Event "Titled Tuesday Blitz March 07 Early 2023"]
[White "Harsha Bharathakoti"]
[Black "Durarbayli, Vasif"]
[WhiteFideId "5078776"]
[BlackFideId "13402935"]
[WhiteElo "2481"]
[BlackElo "2543"]
[Result "1-0"]
[Round "10"]
[TimeControl "180+2"]
[Date "2023.03.07"]
[WhiteClock "0:00:02"]
[BlackClock "0:00:01"]

1. d4 {[%clk 0:03:00]}  Nf6 {[%clk 0:02:59]} 2. c4 {[%clk 0:03:00]}  e6 {[%clk 0:02:59]} 3. Nf3 {[%clk 0:02:59]}  b6 {[%clk 0:03:00]} 4. g3 {[%clk 0:02:58]}  Bb7 {[%clk 0:03:01]} 5. Bg2 {[%clk 0:02:58]}  Be7 {[%clk 0:03:01]} 6. O-O {[%clk 0:02:58]}  O-O {[%clk 0:03:02]} 7. Re1 {[%clk 0:02:58]}  Ne4 {[%clk 0:03:01]} 8. Nfd2 {[%clk 0:02:46]}  d5 {[%clk 0:03:00]} 9. Nc3 {[%clk 0:02:24]}  f5 {[%clk 0:02:55]} 10. Qc2 {[%clk 0:01:54]}  Nc6 {[%clk 0:02:42]} 11. e3 {[%clk 0:01:46]}  Nb4 {[%clk 0:02:29]} 12. Qb1 {[%clk 0:01:45]}  c5 {[%clk 0:02:28]} 13. a3 {[%clk 0:01:38]}  Nc6 {[%clk 0:02:28]} 14. cxd5 {[%clk 0:01:37]}  exd5 {[%clk 0:02:28]} 15. dxc5 {[%clk 0:01:33]}  bxc5 {[%clk 0:01:51]} 16. Qa2 {[%clk 0:01:31]}  c4 {[%clk 0:01:51]} 17. Ndxe4 {[%clk 0:01:19]}  fxe4 {[%clk 0:01:52]} 18. Rd1 {[%clk 0:01:16]}  Ne5 {[%clk 0:01:48]} 19. Bxe4 {[%clk 0:00:54]}  dxe4 {[%clk 0:01:28]} 20. Rxd8 {[%clk 0:00:55]}  Raxd8 {[%clk 0:01:28]} 21. b3 {[%clk 0:00:44]}  Kh8 {[%clk 0:01:18]} 22. bxc4 {[%clk 0:00:40]}  Ba6 {[%clk 0:01:17]} 23. Nb5 {[%clk 0:00:26]}  Rd1+ {[%clk 0:01:09]} 24. Kg2 {[%clk 0:00:26]}  Nd3 {[%clk 0:01:09]} 25. Nc3 {[%clk 0:00:09]}  Rxc1 {[%clk 0:00:59]} 26. Rxc1 {[%clk 0:00:09]}  Nxc1 {[%clk 0:01:00]} 27. Qb1 {[%clk 0:00:09]}  Nd3 {[%clk 0:00:57]} 28. Nxe4 {[%clk 0:00:09]}  Bxc4 {[%clk 0:00:55]} 29. Qb7 {[%clk 0:00:07]}  Ne1+ {[%clk 0:00:35]} 30. Kg1 {[%clk 0:00:06]}  Nf3+ {[%clk 0:00:35]} 31. Kg2 {[%clk 0:00:07]}  Bxa3 {[%clk 0:00:33]} 32. Qxa7 {[%clk 0:00:06]}  Ne1+ {[%clk 0:00:21]} 33. Kg1 {[%clk 0:00:06]}  Nf3+ {[%clk 0:00:21]} 34. Kg2 {[%clk 0:00:07]}  Ne1+ {[%clk 0:00:20]} 35. Kg1 {[%clk 0:00:07]}  Bb4 {[%clk 0:00:18]} 36. Qa4 {[%clk 0:00:06]}  Nd3 {[%clk 0:00:13]} 37. Nc5 {[%clk 0:00:05]}  Bxc5 {[%clk 0:00:03]} 38. Qxc4 {[%clk 0:00:05]}  Rd8 {[%clk 0:00:03]} 39. Kg2 {[%clk 0:00:03]}  h6 {[%clk 0:00:03]} 40. h4 {[%clk 0:00:03]}  Be7 {[%clk 0:00:04]} 41. h5 {[%clk 0:00:03]}  Bf6 {[%clk 0:00:04]} 42. Qb5 {[%clk 0:00:03]}  Ne5 {[%clk 0:00:03]} 43. f4 {[%clk 0:00:02]}  Ng4 {[%clk 0:00:02]} 44. Kf3 {[%clk 0:00:03]}  Nh2+ {[%clk 0:00:03]} 45. Kg2 {[%clk 0:00:02]}  Rd2+ {[%clk 0:00:03]} 46. Kh3 {[%clk 0:00:03]}  Kh7 {[%clk 0:00:01]} 47. Qf5+ {[%clk 0:00:02]} 1-0


[Site "https://www.chess.com"]

[Event "Titled Tuesday Blitz March 07 Early 2023"]
[White "Zakhartsov, Vladimir"]
[Black "Pranav, V"]
[WhiteFideId "4145097"]
[BlackFideId "25060783"]
[WhiteElo "2521"]
[BlackElo "2500"]
[Result "1/2-1/2"]
[Round "10"]
[TimeControl "180+2"]
[Date "2023.03.07"]
[WhiteClock "0:00:01"]
[BlackClock "0:00:02"]

1. d4 {[%clk 0:02:56]}  Nf6 {[%clk 0:03:00]} 2. c4 {[%clk 0:02:55]}  e6 {[%clk 0:03:00]} 3. Nf3 {[%clk 0:02:55]}  b6 {[%clk 0:03:01]} 4. a3 {[%clk 0:02:55]}  Ba6 {[%clk 0:03:01]} 5. e3 {[%clk 0:02:50]}  Be7 {[%clk 0:03:01]} 6. b3 {[%clk 0:02:48]}  O-O {[%clk 0:03:01]} 7. Bd3 {[%clk 0:02:49]}  d5 {[%clk 0:03:01]} 8. O-O {[%clk 0:02:48]}  Bb7 {[%clk 0:03:01]} 9. Bb2 {[%clk 0:02:48]}  Nbd7 {[%clk 0:03:01]} 10. Nbd2 {[%clk 0:02:48]}  Bd6 {[%clk 0:03:01]} 11. Ne5 {[%clk 0:02:46]}  c5 {[%clk 0:02:56]} 12. cxd5 {[%clk 0:02:45]}  exd5 {[%clk 0:02:55]} 13. Nxd7 {[%clk 0:02:42]}  Nxd7 {[%clk 0:02:53]} 14. dxc5 {[%clk 0:02:32]}  Nxc5 {[%clk 0:02:51]} 15. Qg4 {[%clk 0:02:16]}  g6 {[%clk 0:02:30]} 16. Qd4 {[%clk 0:02:00]}  f6 {[%clk 0:02:30]} 17. f4 {[%clk 0:01:29]}  Qe7 {[%clk 0:02:30]} 18. b4 {[%clk 0:01:20]}  Ne6 {[%clk 0:02:22]} 19. Qc3 {[%clk 0:01:20]}  d4 {[%clk 0:02:12]} 20. Qb3 {[%clk 0:01:09]}  dxe3 {[%clk 0:02:10]} 21. f5 {[%clk 0:00:50]}  exd2 {[%clk 0:01:57]} 22. fxe6 {[%clk 0:00:50]}  Kg7 {[%clk 0:01:47]} 23. Rf2 {[%clk 0:00:41]}  Be5 {[%clk 0:01:29]} 24. Rxd2 {[%clk 0:00:32]}  Rad8 {[%clk 0:01:25]} 25. Bxe5 {[%clk 0:00:26]}  fxe5 {[%clk 0:01:26]} 26. Re2 {[%clk 0:00:27]}  Qd6 {[%clk 0:01:18]} 27. Qc3 {[%clk 0:00:17]}  Qxd3 {[%clk 0:00:49]} 28. Qxe5+ {[%clk 0:00:16]}  Rf6 {[%clk 0:00:50]} 29. e7 {[%clk 0:00:14]}  Re8 {[%clk 0:00:49]} 30. Rf1 {[%clk 0:00:10]}  Qd6 {[%clk 0:00:49]} 31. Qc3 {[%clk 0:00:02]}  Qc6 {[%clk 0:00:41]} 32. Qb2 {[%clk 0:00:01]}  Bc8 {[%clk 0:00:35]} 33. Ref2 {[%clk 0:00:01]}  Bf5 {[%clk 0:00:35]} 34. g4 {[%clk 0:00:02]}  Rxe7 {[%clk 0:00:32]} 35. g5 {[%clk 0:00:02]}  Re4 {[%clk 0:00:17]} 36. Qxf6+ {[%clk 0:00:02]}  Qxf6 {[%clk 0:00:18]} 37. gxf6+ {[%clk 0:00:02]}  Kxf6 {[%clk 0:00:19]} 38. Rf3 {[%clk 0:00:03]}  h5 {[%clk 0:00:17]} 39. R1f2 {[%clk 0:00:02]}  Rc4 {[%clk 0:00:18]} 40. Kg2 {[%clk 0:00:01]}  h4 {[%clk 0:00:18]} 41. h3 {[%clk 0:00:02]}  Kg5 {[%clk 0:00:18]} 42. Kh2 {[%clk 0:00:01]}  Rc1 {[%clk 0:00:18]} 43. Re3 {[%clk 0:00:01]}  Ra1 {[%clk 0:00:17]} 44. Rg2+ {[%clk 0:00:02]}  Kh5 {[%clk 0:00:17]} 45. Rg1 {[%clk 0:00:02]}  Ra2+ {[%clk 0:00:17]} 46. Rg2 {[%clk 0:00:03]}  Ra1 {[%clk 0:00:17]} 47. Rg1 {[%clk 0:00:03]}  Bb1 {[%clk 0:00:06]} 48. Rg2 {[%clk 0:00:01]}  Kh6 {[%clk 0:00:03]} 49. Re6 {[%clk 0:00:01]}  Bf5 {[%clk 0:00:03]} 50. Re3 {[%clk 0:00:01]}  Kh5 {[%clk 0:00:02]} 1/2-1/2


[Site "https://www.chess.com"]